fUST/lending_fUST_20250221
["ID","MTS","AMOUNT","RATE_DAILY","PERIOD"]
[353826261,1740081046595,-2976.46,0.00013863,2]
[353826262,1740081046604,-521.88774525,0.00013863,2]
[353826263,1740081046613,-637.75,0.00013863,2]
[353826264,1740081046622,-500.0,0.00013863,2]
[353826265,1740081046631,-500.0,0.00013863,2]
[353826266,1740081046641,-500.0,0.00013863,2]
[353826267,1740081046650,-500.0,0.00013863,2]
[353826268,1740081046659,-3624.95,0.00013863,2]
[353826269,1740081046669,-500.0,0.00013863,2]
[353826270,1740081046678,-500.0,0.00013863,2]
[353826271,1740081046687,-1955.2,0.00013863,2]
[353826272,1740081046697,-500.0,0.00013863,2]
[353826273,1740081046706,-1867.16,0.00013863,2]
[353826274,1740081046715,-1429.61,0.00013863,2]
[353826275,1740081046725,-500.0,0.00013863,2]
[353826276,1740081046734,-500.0,0.00013863,2]
[353826277,1740081046743,-500.0,0.00013863,2]
[353826278,1740081046753,-500.0,0.00013863,2]
[353826279,1740081046763,-500.0,0.00013863,2]
[353826280,1740081046774,-506.23585605,0.00013863,2]
[353826281,1740081046783,-500.0,0.00013863,2]
[353826282,1740081046793,-1152.68,0.00013863,2]
[353826283,1740081046802,-500.0,0.00013863,2]
[353826284,1740081046811,-500.0,0.00013863,2]
[353826285,1740081046820,-500.0,0.00013863,2]
[353826286,1740081046833,-500.0,0.00013863,2]
[353826287,1740081046841,-1376.24,0.00013863,2]
[353826288,1740081046851,-1741.58,0.00013863,2]
[353826289,1740081046860,-500.0,0.00013863,2]
[353826290,1740081046869,-5313.9,0.00013863,2]
[353826291,1740081046878,-500.0,0.00013863,2]
[353826292,1740081046888,-569.05175497,0.00013863,2]
[353826293,1740081046899,-378.3472983,0.00013863,2]
[353826294,1740081046909,-500.0,0.00013863,2]
[353826295,1740081046919,-1545.04,0.00013863,2]
[353826296,1740081046928,-500.0,0.00013863,2]
[353826297,1740081046937,-500.0,0.00013863,2]
[353826298,1740081046947,-500.0,0.00013863,2]
[353826299,1740081046957,-500.0,0.00013863,2]
[353826300,1740081046967,-12473.25,0.00013863,2]
[353826301,1740081046977,-668.14,0.00013863,2]
[353826302,1740081046986,-500.0,0.00013863,2]
[353826303,1740081046996,-500.0,0.00013863,2]
[353826304,1740081047005,-1204.27,0.00013863,2]
[353826305,1740081047015,-1809.48,0.00013863,2]
[353826306,1740081047025,-500.0,0.00013863,2]
[353826307,1740081047034,-8422.45,0.00013863,2]
[353826308,1740081047043,-500.0,0.00013863,2]
[353826309,1740081047052,-536.89,0.00013863,2]
[353826310,1740081047061,-568.82,0.00013863,2]
[353826311,1740081047070,-2793.5,0.00013863,2]
[353826312,1740081047079,-500.0,0.00013863,2]
[353826313,1740081047088,-3282.07,0.00013863,2]
[353826314,1740081047097,-500.0,0.00013863,2]
[353826315,1740081047106,-500.0,0.00013863,2]
[353826316,1740081047115,-500.0,0.00013863,2]
[353826317,1740081047124,-1891.5,0.00013863,2]
[353826318,1740081047133,-7438.69753278,0.00013903,2]
[353826319,1740081047143,-744.07961046,0.00013903,2]
[353826320,1740081047152,-317.87056877,0.00013942,2]
[353826321,1740081047161,-594.82,0.00013945,2]
[353826322,1740081047170,-500.0,0.00013945,2]
[353826323,1740081047179,-513.79,0.00013945,2]
[353826324,1740081047189,-500.0,0.00013945,2]
[353826325,1740081047198,-500.0,0.00013945,2]
[353826326,1740081047207,-153.85974818,0.00013945,2]
[353826327,1740081047217,-500.0,0.00013945,2]
[353826328,1740081047226,-500.0,0.00013945,2]
[353826329,1740081047236,-638.61968683,0.00013945,2]
[353826330,1740081047245,-500.0,0.00013945,2]
[353826331,1740081047254,-500.0,0.00013945,2]
[353826332,1740081047263,-371.04980612,0.00013945,2]
[353826333,1740081047276,-500.0,0.00013945,2]
[353826334,1740081047285,-205.39338985,0.00013945,2]
[353826335,1740081047294,-1193.65,0.00013945,2]
[353826336,1740081047304,-547.01087436,0.00013945,2]
[353826337,1740081047314,-500.0,0.00013945,2]
[353826338,1740081047323,-584.91,0.00013945,2]
[353826339,1740081047333,-500.0,0.00013945,2]
[353826340,1740081047342,-500.0,0.00013945,2]
[353826341,1740081047352,-500.0,0.00013945,2]
[353826342,1740081047362,-500.0,0.00013945,2]
[353826343,1740081047371,-562.22,0.00013945,2]
[353826344,1740081047379,-500.0,0.00013945,2]
[353826345,1740081047388,-500.0,0.00013945,2]
[353826346,1740081047398,-726.14,0.00013945,2]
[353826347,1740081047407,-500.0,0.00013945,2]
[353826348,1740081047416,-500.0,0.00013945,2]
[353826349,1740081047425,-500.0,0.00013945,2]
[353826350,1740081047434,-500.0,0.00013945,2]
[353826351,1740081047443,-500.0,0.00013945,2]
[353826352,1740081047453,-500.0,0.00013945,2]
[353826353,1740081047462,-500.0,0.00013945,2]
[353826354,1740081047471,-307.51127372,0.00013945,2]
[353826355,1740081047480,-854.98,0.00013945,2]
[353826356,1740081047489,-500.0,0.00013945,2]
[353826357,1740081047498,-518.04,0.00013945,2]
[353826358,1740081047507,-500.0,0.00013945,2]
[353826359,1740081047516,-500.0,0.00013945,2]
[353826360,1740081047526,-500.0,0.00013945,2]
[353826361,1740081047538,-225.82306828,0.00013945,2]
[353826362,1740081047551,-796.66,0.00013945,2]
[353826363,1740081047559,-500.0,0.00013945,2]
[353826364,1740081047568,-576.57,0.00013945,2]
[353826365,1740081047577,-500.0,0.00013945,2]
[353826366,1740081047586,-500.0,0.00013945,2]
[353826367,1740081047596,-520.56,0.00013945,2]
[353826368,1740081047604,-500.0,0.00013945,2]
[353826369,1740081047613,-500.0,0.00013945,2]
[353826370,1740081047622,-500.0,0.00013945,2]
[353826371,1740081047631,-500.0,0.00013945,2]
[353826372,1740081047640,-500.0,0.00013945,2]
[353826373,1740081047650,-855.71,0.00013945,2]
[353826374,1740081047659,-500.0,0.00013945,2]
[353826375,1740081047668,-500.0,0.00013945,2]
[353826376,1740081047677,-500.0,0.00013945,2]
[353826377,1740081047686,-653.55,0.00013945,2]
[353826378,1740081047695,-500.0,0.00013945,2]
[353826379,1740081047703,-500.0,0.00013945,2]
[353826380,1740081047713,-500.0,0.00013945,2]
[353826381,1740081047722,-527.25,0.00013945,2]
[353826382,1740081047731,-500.0,0.00013945,2]
[353826383,1740081047739,-526.08,0.00013945,2]
[353826384,1740081047748,-500.0,0.00013945,2]
[353826385,1740081047758,-500.0,0.00013945,2]
[353826386,1740081047767,-500.0,0.00013945,2]
[353826387,1740081047776,-500.0,0.00013945,2]
[353826388,1740081047786,-500.0,0.00013945,2]
[353826389,1740081047795,-500.0,0.00013945,2]
[353826390,1740081047804,-500.0,0.00013945,2]
[353826391,1740081047813,-500.0,0.00013945,2]
[353826392,1740081047822,-500.0,0.00013945,2]
[353826393,1740081047831,-500.0,0.00013945,2]
[353826394,1740081047840,-500.0,0.00013945,2]
[353826395,1740081047849,-527.72618606,0.00013945,2]
[353826396,1740081047858,-500.0,0.00013945,2]
[353826397,1740081047867,-500.0,0.00013945,2]
[353826398,1740081047876,-651.0,0.00013945,2]
[353826399,1740081047885,-500.0,0.00013945,2]
[353826400,1740081047895,-445.62761201,0.00013945,2]
[353826401,1740081047904,-500.0,0.00013945,2]
[353826402,1740081047914,-593.64,0.00013945,2]
[353826403,1740081047923,-753.07,0.00013945,2]
[353826404,1740081047932,-500.0,0.00013945,2]
[353826405,1740081047941,-500.0,0.00013945,2]
[353826406,1740081047950,-13040.78,0.00013945,2]
[353826407,1740081047961,-1186.37,0.00013945,2]
[353826408,1740081047971,-34993.76,0.00013945,2]
[353826409,1740081047980,-1017.86,0.00013945,2]
[353826410,1740081047989,-500.0,0.00013945,2]
[353826411,1740081047999,-418.57688245,0.00013945,2]
[353826412,1740081048010,-2077.25,0.00013945,2]
[353826413,1740081048019,-963.85,0.00013945,2]
[353826414,1740081048028,-2415.36,0.00013945,2]
[353826415,1740081048038,-1104.4,0.00013945,2]
[353826416,1740081048047,-500.0,0.00013945,2]
[353826417,1740081048056,-928.84,0.00013945,2]
[353826418,1740081048065,-500.0,0.00013945,2]
[353826419,1740081048074,-500.0,0.00013945,2]
[353826420,1740081048084,-2659.11,0.00013945,2]
[353826421,1740081048093,-5902.48,0.00013945,2]
[353826422,1740081048102,-893.57,0.00013945,2]
[353826423,1740081048112,-500.0,0.00013945,2]
[353826424,1740081048121,-500.0,0.00013945,2]
[353826425,1740081048131,-2976.46,0.00013945,2]
[353826426,1740081048141,-637.75,0.00013945,2]
[353826427,1740081048150,-500.0,0.00013945,2]
[353826428,1740081048160,-500.0,0.00013945,2]
[353826429,1740081048170,-500.0,0.00013945,2]
[353826430,1740081048179,-3624.95,0.00013945,2]
[353826431,1740081048189,-500.0,0.00013945,2]
[353826432,1740081048199,-500.0,0.00013945,2]
[353826433,1740081048208,-1955.2,0.00013945,2]
[353826434,1740081048217,-500.0,0.00013945,2]
[353826435,1740081048227,-1867.16,0.00013945,2]
[353826436,1740081048236,-1429.61,0.00013945,2]
[353826437,1740081048246,-500.0,0.00013945,2]
[353826438,1740081048255,-500.0,0.00013945,2]
[353826439,1740081048265,-500.0,0.00013945,2]
[353826440,1740081048278,-500.0,0.00013945,2]
[353826441,1740081048288,-500.0,0.00013945,2]
[353826442,1740081048297,-500.0,0.00013945,2]
[353826443,1740081048307,-1152.68,0.00013945,2]
[353826444,1740081048317,-500.0,0.00013945,2]
[353826445,1740081048327,-500.0,0.00013945,2]
[353826446,1740081048336,-500.0,0.00013945,2]
[353826447,1740081048346,-1376.24,0.00013945,2]
[353826448,1740081048356,-1741.58,0.00013945,2]
[353826449,1740081048466,-503.0558322,0.00013945,2]
[353826450,1740081048477,-5313.9,0.00013945,2]
[353826451,1740081048486,-500.0,0.00013945,2]
[353826452,1740081048496,-500.0,0.00013945,2]
[353826453,1740081048506,-1545.04,0.00013945,2]
[353826454,1740081048515,-500.0,0.00013945,2]
[353826455,1740081048525,-500.0,0.00013945,2]
[353826456,1740081048534,-619.38371263,0.00013945,2]
[353826457,1740081048544,-500.0,0.00013945,2]
[353826458,1740081048553,-12473.25,0.00013945,2]
[353826459,1740081048563,-668.14,0.00013945,2]
[353826460,1740081048572,-500.0,0.00013945,2]
[353826461,1740081048583,-500.0,0.00013945,2]
[353826462,1740081048592,-1204.27,0.00013945,2]
[353826463,1740081048601,-1809.48,0.00013945,2]
[353826464,1740081048611,-500.0,0.00013945,2]
[353826465,1740081048622,-8422.45,0.00013945,2]
[353826466,1740081048632,-500.0,0.00013945,2]
[353826467,1740081048641,-536.89,0.00013945,2]
[353826468,1740081048651,-568.82,0.00013945,2]
[353826469,1740081048660,-2793.5,0.00013945,2]
[353826470,1740081048670,-500.0,0.00013945,2]
[353826471,1740081048679,-3282.07,0.00013945,2]
[353826472,1740081048689,-500.0,0.00013945,2]
[353826473,1740081048698,-500.0,0.00013945,2]
[353826474,1740081048707,-500.0,0.00013945,2]
[353826475,1740081048717,-1891.5,0.00013945,2]
[353826476,1740081048727,-150.0,0.00013971,2]
[353826477,1740081048737,-1969.0,0.00013971,2]
[353826478,1740081048746,-538.0,0.00013971,2]
[353826479,1740081048756,-2287.0,0.00013971,2]
[353826480,1740081048766,-150.0,0.00013971,2]
[353826481,1740081048777,-396.0,0.00013971,2]
[353826482,1740081048787,-10014.20700512,0.00013974,2]
[353826483,1740081048796,-180.994,0.00013976,2]
[353826484,1740081048806,-744.07961046,0.00014003,2]
[353826485,1740081048815,-500.0,0.00014027,2]
[353826486,1740081048824,-500.0,0.00014027,2]
[353826487,1740081048834,-500.0,0.00014027,2]
[353826488,1740081048843,-500.0,0.00014027,2]
[353826489,1740081048852,-500.0,0.00014027,2]
[353826490,1740081048861,-500.0,0.00014027,2]
[353826491,1740081048870,-500.0,0.00014027,2]
[353826492,1740081048879,-500.0,0.00014027,2]
[353826493,1740081048888,-1193.65,0.00014027,2]
[353826494,1740081048898,-500.0,0.00014027,2]
[353826495,1740081048908,-584.91,0.00014027,2]
[353826496,1740081048917,-500.0,0.00014027,2]
[353826497,1740081048927,-329.42788432,0.00014027,2]
[353826498,1740081048936,-500.0,0.00014027,2]
[353826499,1740081048951,-500.0,0.00014027,2]
[353826500,1740081048962,-562.22,0.00014027,2]
[353826501,1740081048972,-500.0,0.00014027,2]
[353826502,1740081048981,-500.0,0.00014027,2]
[353826503,1740081048992,-726.14,0.00014027,2]
[353826504,1740081049001,-500.0,0.00014027,2]
[353826505,1740081049011,-500.0,0.00014027,2]
[353826506,1740081049021,-500.0,0.00014027,2]
[353826507,1740081049031,-500.0,0.00014027,2]
[353826508,1740081049040,-500.0,0.00014027,2]
[353826509,1740081049050,-500.0,0.00014027,2]
[353826510,1740081049059,-854.98,0.00014027,2]
[353826511,1740081049068,-500.0,0.00014027,2]
[353826512,1740081049078,-518.04,0.00014027,2]
[353826513,1740081049087,-500.0,0.00014027,2]
[353826514,1740081049097,-500.0,0.00014027,2]
[353826515,1740081049106,-500.0,0.00014027,2]
[353826516,1740081049115,-796.66,0.00014027,2]
[353826517,1740081049124,-500.0,0.00014027,2]
[353826518,1740081049132,-576.57,0.00014027,2]
[353826519,1740081049142,-500.0,0.00014027,2]
[353826520,1740081049152,-500.0,0.00014027,2]
[353826521,1740081049162,-520.56,0.00014027,2]
[353826522,1740081049171,-500.0,0.00014027,2]
[353826523,1740081049180,-500.0,0.00014027,2]
[353826524,1740081049190,-155.44690647,0.00014027,2]
[353826525,1740081049199,-500.0,0.00014027,2]
[353826526,1740081049209,-500.0,0.00014027,2]
[353826527,1740081049219,-855.71,0.00014027,2]
[353826528,1740081049228,-500.0,0.00014027,2]
[353826529,1740081049238,-500.0,0.00014027,2]
[353826530,1740081049247,-500.0,0.00014027,2]
[353826531,1740081049257,-653.55,0.00014027,2]
[353826532,1740081049267,-500.0,0.00014027,2]
[353826533,1740081049280,-500.0,0.00014027,2]
[353826534,1740081049289,-500.0,0.00014027,2]
[353826535,1740081049298,-527.25,0.00014027,2]
[353826536,1740081049308,-500.0,0.00014027,2]
[353826537,1740081049319,-526.08,0.00014027,2]
[353826538,1740081049328,-500.0,0.00014027,2]
[353826539,1740081049337,-500.0,0.00014027,2]
[353826540,1740081049348,-500.0,0.00014027,2]
[353826541,1740081049357,-500.0,0.00014027,2]
[353826542,1740081049367,-500.0,0.00014027,2]
[353826543,1740081049377,-500.0,0.00014027,2]
[353826544,1740081049387,-394.9130372,0.00014027,2]
[353826545,1740081049396,-500.0,0.00014027,2]
[353826546,1740081049407,-500.0,0.00014027,2]
[353826547,1740081049416,-500.0,0.00014027,2]
[353826548,1740081049426,-500.0,0.00014027,2]
[353826549,1740081049435,-500.0,0.00014027,2]
[353826550,1740081049446,-651.0,0.00014027,2]
[353826551,1740081049455,-500.0,0.00014027,2]
[353826552,1740081049465,-476.6464232,0.00014027,2]
[353826553,1740081049475,-593.64,0.00014027,2]
[353826554,1740081049484,-753.07,0.00014027,2]
[353826555,1740081049494,-500.0,0.00014027,2]
[353826556,1740081049503,-500.0,0.00014027,2]
[353826557,1740081049513,-13040.78,0.00014027,2]
[353826558,1740081049523,-1186.37,0.00014027,2]
[353826559,1740081049532,-34993.76,0.00014027,2]
[353826560,1740081049541,-1017.86,0.00014027,2]
[353826561,1740081049551,-500.0,0.00014027,2]
[353826562,1740081049562,-2077.25,0.00014027,2]
[353826563,1740081049571,-963.85,0.00014027,2]
[353826564,1740081049581,-2415.36,0.00014027,2]
[353826565,1740081049591,-1104.4,0.00014027,2]
[353826566,1740081049600,-500.0,0.00014027,2]
[353826567,1740081049610,-928.84,0.00014027,2]
[353826568,1740081049619,-500.0,0.00014027,2]
[353826569,1740081049629,-500.0,0.00014027,2]
[353826570,1740081049639,-2659.11,0.00014027,2]
[353826571,1740081049650,-5902.48,0.00014027,2]
[353826572,1740081049660,-893.57,0.00014027,2]
[353826573,1740081049671,-500.0,0.00014027,2]
[353826574,1740081049681,-500.0,0.00014027,2]
[353826575,1740081049691,-2976.46,0.00014027,2]
[353826576,1740081049701,-637.75,0.00014027,2]
[353826577,1740081049711,-500.0,0.00014027,2]
[353826578,1740081049720,-500.0,0.00014027,2]
[353826579,1740081049730,-3624.95,0.00014027,2]
[353826580,1740081049739,-500.0,0.00014027,2]
[353826581,1740081049749,-500.0,0.00014027,2]
[353826582,1740081049759,-1955.2,0.00014027,2]
[353826583,1740081049768,-500.0,0.00014027,2]
[353826584,1740081049778,-1867.16,0.00014027,2]
[353826585,1740081049787,-1429.61,0.00014027,2]
[353826586,1740081049796,-500.0,0.00014027,2]
[353826587,1740081049806,-166.08861043,0.00014027,2]
[353826588,1740081049815,-500.0,0.00014027,2]
[353826589,1740081049825,-500.0,0.00014027,2]
[353826590,1740081049835,-500.0,0.00014027,2]
[353826591,1740081049845,-500.0,0.00014027,2]
[353826592,1740081049855,-1152.68,0.00014027,2]
[353826593,1740081049864,-500.0,0.00014027,2]
[353826594,1740081049874,-1376.24,0.00014027,2]
[353826595,1740081049883,-1741.58,0.00014027,2]
[353826596,1740081049895,-5313.9,0.00014027,2]
[353826597,1740081049905,-500.0,0.00014027,2]
[353826598,1740081049915,-500.0,0.00014027,2]
[353826599,1740081049924,-1545.04,0.00014027,2]
[353826600,1740081049935,-500.0,0.00014027,2]
[353826601,1740081049944,-500.0,0.00014027,2]
[353826602,1740081049955,-500.0,0.00014027,2]
[353826603,1740081049966,-12473.25,0.00014027,2]
[353826604,1740081049976,-668.14,0.00014027,2]
[353826605,1740081049985,-500.0,0.00014027,2]
[353826606,1740081049997,-500.0,0.00014027,2]
[353826607,1740081050007,-1204.27,0.00014027,2]
[353826608,1740081050017,-1809.48,0.00014027,2]
[353826609,1740081050026,-500.0,0.00014027,2]
[353826610,1740081050037,-8422.45,0.00014027,2]
[353826611,1740081050047,-500.0,0.00014027,2]
[353826612,1740081050056,-536.89,0.00014027,2]
[353826613,1740081050066,-568.82,0.00014027,2]
[353826614,1740081050077,-2793.5,0.00014027,2]
[353826615,1740081050087,-500.0,0.00014027,2]
[353826616,1740081050096,-3282.07,0.00014027,2]
[353826617,1740081050106,-500.0,0.00014027,2]
[353826618,1740081050115,-500.0,0.00014027,2]
[353826619,1740081050124,-500.0,0.00014027,2]
[353826620,1740081050134,-1891.5,0.00014027,2]
[353826621,1740081050144,-420.0,0.00014079,2]
[353826622,1740081050154,-399.56140855,0.00014091,2]
[353826623,1740081050164,-399.56140855,0.00014091,2]
[353826624,1740081050174,-399.56140855,0.00014091,2]
[353826625,1740081050183,-399.56140855,0.00014091,2]
[353826626,1740081050192,-399.56140855,0.00014091,2]
[353826627,1740081050201,-399.56140855,0.00014091,2]
[353826628,1740081050210,-399.56140855,0.00014091,2]
[353826629,1740081050220,-399.56140855,0.00014091,2]
[353826630,1740081050231,-399.56140855,0.00014091,2]
[353826631,1740081050241,-399.56140855,0.00014091,2]
[353826632,1740081050251,-399.56140855,0.00014091,2]
[353826633,1740081050266,-399.56140855,0.00014091,2]
[353826634,1740081050280,-399.56140855,0.00014091,2]
[353826635,1740081050291,-399.56140855,0.00014091,2]
[353826636,1740081050301,-399.56140855,0.00014091,2]
[353826637,1740081050310,-399.56140855,0.00014091,2]
[353826638,1740081050320,-399.56140855,0.00014091,2]
[353826639,1740081050330,-399.56140855,0.00014091,2]
[353826640,1740081050340,-399.56140855,0.00014091,2]
[353826641,1740081050350,-399.56,0.00014091,2]
[353826642,1740081050360,-183.82870761,0.00014091,2]
[353826643,1740081050370,-189.0,0.000141,2]
[353826644,1740081050379,-744.07961046,0.00014103,2]
[353826645,1740081050388,-500.0,0.00014109,2]
[353826646,1740081050399,-500.0,0.00014109,2]
[353826647,1740081050408,-245.7,0.00014109,2]
[353826648,1740081050417,-500.0,0.00014109,2]
[353826649,1740081050426,-500.0,0.00014109,2]
[353826650,1740081050436,-500.0,0.00014109,2]
[353826651,1740081050446,-500.0,0.00014109,2]
[353826652,1740081050456,-493.89,0.00014109,2]
[353826653,1740081050465,-1193.65,0.00014109,2]
[353826654,1740081050475,-500.0,0.00014109,2]
[353826655,1740081050484,-584.91,0.00014109,2]
[353826656,1740081050494,-500.0,0.00014109,2]
[353826657,1740081050503,-500.0,0.00014109,2]
[353826658,1740081050513,-500.0,0.00014109,2]
[353826659,1740081050522,-562.22,0.00014109,2]
[353826660,1740081050532,-508.7045769,0.00014109,2]
[353826661,1740081050541,-500.0,0.00014109,2]
[353826662,1740081050550,-726.14,0.00014109,2]
[353826663,1740081050560,-500.0,0.00014109,2]
[353826664,1740081050570,-500.0,0.00014109,2]
[353826665,1740081050580,-500.0,0.00014109,2]
[353826666,1740081050589,-500.0,0.00014109,2]
[353826667,1740081050598,-500.0,0.00014109,2]
[353826668,1740081050609,-500.0,0.00014109,2]
[353826669,1740081050619,-854.98,0.00014109,2]
[353826670,1740081050628,-500.0,0.00014109,2]
[353826671,1740081050639,-518.04,0.00014109,2]
[353826672,1740081050648,-500.0,0.00014109,2]
[353826673,1740081050658,-500.0,0.00014109,2]
[353826674,1740081050668,-500.0,0.00014109,2]
[353826675,1740081050678,-796.66,0.00014109,2]
[353826676,1740081050688,-500.0,0.00014109,2]
[353826677,1740081050698,-576.57,0.00014109,2]
[353826678,1740081050708,-500.0,0.00014109,2]
[353826679,1740081050717,-500.0,0.00014109,2]
[353826680,1740081050727,-520.56,0.00014109,2]
[353826681,1740081050735,-500.0,0.00014109,2]
[353826682,1740081050745,-500.0,0.00014109,2]
[353826683,1740081050755,-500.0,0.00014109,2]
[353826684,1740081050764,-500.0,0.00014109,2]
[353826685,1740081050774,-855.71,0.00014109,2]
[353826686,1740081050784,-500.0,0.00014109,2]
[353826687,1740081050794,-500.0,0.00014109,2]
[353826688,1740081050804,-500.0,0.00014109,2]
[353826689,1740081050905,-653.55,0.00014109,2]
[353826690,1740081050917,-500.0,0.00014109,2]
[353826691,1740081050926,-500.0,0.00014109,2]
[353826692,1740081050937,-500.0,0.00014109,2]
[353826693,1740081050947,-527.25,0.00014109,2]
[353826694,1740081050956,-452.48461225,0.00014109,2]
[353826695,1740081050966,-526.08,0.00014109,2]
[353826696,1740081050976,-500.0,0.00014109,2]
[353826697,1740081050986,-337.822169,0.00014109,2]
[353826698,1740081050995,-500.0,0.00014109,2]
[353826699,1740081051004,-500.0,0.00014109,2]
[353826700,1740081051014,-500.0,0.00014109,2]
[353826701,1740081051023,-500.0,0.00014109,2]
[353826702,1740081051034,-500.0,0.00014109,2]
[353826703,1740081051043,-500.0,0.00014109,2]
[353826704,1740081051053,-500.0,0.00014109,2]
[353826705,1740081051063,-500.0,0.00014109,2]
[353826706,1740081051073,-651.0,0.00014109,2]
[353826707,1740081051082,-500.0,0.00014109,2]
[353826708,1740081051094,-593.64,0.00014109,2]
[353826709,1740081051104,-753.07,0.00014109,2]
[353826710,1740081051114,-500.0,0.00014109,2]
[353826711,1740081051123,-500.0,0.00014109,2]
[353826712,1740081051133,-13040.78,0.00014109,2]
[353826713,1740081051143,-1186.37,0.00014109,2]
[353826714,1740081051154,-34993.76,0.00014109,2]
[353826715,1740081051163,-1017.86,0.00014109,2]
[353826716,1740081051173,-500.0,0.00014109,2]
[353826717,1740081051183,-2077.25,0.00014109,2]
[353826718,1740081051193,-963.85,0.00014109,2]
[353826719,1740081051203,-2415.36,0.00014109,2]
[353826720,1740081051213,-1104.4,0.00014109,2]
[353826721,1740081051223,-500.0,0.00014109,2]
[353826722,1740081051232,-928.84,0.00014109,2]
[353826723,1740081051242,-500.0,0.00014109,2]
[353826724,1740081051252,-500.0,0.00014109,2]
[353826725,1740081051261,-2659.11,0.00014109,2]
[353826726,1740081051272,-5902.48,0.00014109,2]
[353826727,1740081051283,-893.57,0.00014109,2]
[353826728,1740081051292,-500.0,0.00014109,2]
[353826729,1740081051302,-501.01678089,0.00014109,2]
[353826730,1740081051312,-2976.46,0.00014109,2]
[353826731,1740081051322,-637.75,0.00014109,2]
[353826732,1740081051332,-500.0,0.00014109,2]
[353826733,1740081051341,-500.0,0.00014109,2]
[353826734,1740081051351,-3624.95,0.00014109,2]
[353826735,1740081051361,-500.0,0.00014109,2]
[353826736,1740081051371,-500.0,0.00014109,2]
[353826737,1740081051381,-1955.2,0.00014109,2]
[353826738,1740081051390,-500.0,0.00014109,2]
[353826739,1740081051403,-1867.16,0.00014109,2]
[353826740,1740081051413,-1429.61,0.00014109,2]
[353826741,1740081051424,-500.0,0.00014109,2]
[353826742,1740081051435,-500.0,0.00014109,2]
[353826743,1740081051446,-500.0,0.00014109,2]
[353826744,1740081051456,-500.0,0.00014109,2]
[353826745,1740081051467,-500.0,0.00014109,2]
[353826746,1740081051478,-1152.68,0.00014109,2]
[353826747,1740081051487,-500.0,0.00014109,2]
[353826748,1740081051497,-1376.24,0.00014109,2]
[353826749,1740081051506,-1741.58,0.00014109,2]
[353826750,1740081051516,-5313.9,0.00014109,2]
[353826751,1740081051526,-500.0,0.00014109,2]
[353826752,1740081051535,-500.0,0.00014109,2]
[353826753,1740081051545,-1545.04,0.00014109,2]
[353826754,1740081051555,-500.0,0.00014109,2]
[353826755,1740081051564,-500.0,0.00014109,2]
[353826756,1740081051573,-500.0,0.00014109,2]
[353826757,1740081051583,-12473.25,0.00014109,2]
[353826758,1740081051592,-668.14,0.00014109,2]
[353826759,1740081051602,-500.0,0.00014109,2]
[353826760,1740081051612,-500.0,0.00014109,2]